Workbook

Sheet Отпуск ЭЭ сет организациями
F5: L1 | G5: L1.1 | H5: L1.2 | I5: L2 | J5: L2.1 | K5: L2.2 | L5: L3 | M5: L3.1 | N5: L3.1 | O5: L3.2 | P5: L4.1 | Q5: L4.2
D8: Сведения об отпуске (передаче) электроэнергии распределительными сетевыми организациями отдельным категориям потребителей
D9: =IF(org="","Не определено",org) -> ООО "Энергонефть Томск"
K10: Коды по ОКЕИ: 1000 киловатт-часов – 246, мегаватт – 215, тысяча рублей – 384
D11: № п/п | E11: Наименование показателя | F11: Код строки | G11: Всего | H11: В том числе по уровню напряжения
H12: ВН | I12: СН1 | J12: СН2 | K12: НН
D13: 0 | E13: 1 | F13: 2 | G13: 3 | H13: 4 | I13: 5 | J13: 6 | K13: 7
D14: I. Электроэнергия (тыс. кВт ч)
D15: 1 | E15: Поступление в сеть из других организаций: | F15: 10 | G15: =SUM(H15:K15) -> 26025.328 | H15: =H16+H17+H20+H23 -> 26025.328 | I15: =I16+I17+I20+I23 -> 0 | J15: =J16+J17+J20+J23 -> 0 | K15: =K16+K17+K20+K23 -> 0 | P15: 10
D16: 1.1 | E16: из сетей ПАО "ФСК ЕЭС" | F16: 20 | G16: =SUM(H16:K16) -> 0 | P16: 20
D17: 1.2 | E17: от генерирующих компаний и блок-станций: | F17: 30 | G17: 0 | H17: =SUM(H18:H19) -> 0 | I17: =SUM(I18:I19) -> 0 | J17: =SUM(J18:J19) -> 0 | K17: =SUM(K18:K19) -> 0 | P17: 30
D18: 1.2.0 | F18: 30
E19: Добавить организацию
D20: 1.3 | E20: от несетевых организаций: | F20: 230 | G20: 0 | H20: =SUM(H21:H22) -> 0 | I20: =SUM(I21:I22) -> 0 | J20: =SUM(J21:J22) -> 0 | K20: =SUM(K21:K22) -> 0
D21: 1.3.0 | F21: 230
E22: Добавить организацию
D23: 1.4 | E23: от смежных сетевых организаций: | F23: 430 | G23: 26025.328 | H23: =SUM(H24:H26) -> 26025.328 | I23: =SUM(I24:I26) -> 0 | J23: =SUM(J24:J26) -> 0 | K23: =SUM(K24:K26) -> 0 | P23: 40
D24: 1.4.0 | F24: 430
C25: О | D25: 1.4.1 | E25: АО "Россети Тюмень" | F25: 431 | G25: =SUM(H25:K25) -> 26025.328 | H25: 26025.328 | M25: 8602060185 | N25: 997450001 | O25: 26522781
E26: Добавить организацию
D27: 2 | E27: Поступление в сеть из других уровней напряжения (трансформация) | F27: 630 | G27: 39688.506 | H27: =H29+H30+H31 -> 0 | I27: =I28+I30+I31 -> 13923.549 | J27: =J28+J29+J31 -> 25764.957 | K27: =K28+K29+K30 -> 0 | P27: 50
D28: 2.1 | E28: ВН | F28: 640 | G28: 26025.328 | I28: 13923.549 | J28: 12101.779 | P28: 60
D29: 2.2 | E29: СН1 | F29: 650 | G29: 13663.178 | J29: 13663.178 | P29: 70
D30: 2.3 | E30: СН2 | F30: 660 | G30: 0 | P30: 80
D31: 2.4 | E31: НН | F31: 670 | G31: 0 | P31: 90
D32: 3 | E32: Генерация на установках организации (совмещение деятельности) | F32: 680 | G32: 0
D33: 4 | E33: Отпуск из сети: | F33: 690 | G33: 24895.826 | H33: =H34+H36+H39+H42 -> 0 | I33: =I34+I36+I39+I42 -> 0 | J33: =J34+J36+J39+J42 -> 24895.826 | K33: =K34+K36+K39+K42 -> 0 | P33: 100
D34: 4.1 | E34: прямым прочим потребителям по договорам оказания услуг по передаче электрической энергии, в том числе: | F34: 700 | G34: 0
D35: 4.1.1 | E35: потребителям, опосредованно подключенным к шинам генераторов | F35: 710 | G35: 0
D36: 4.2 | E36: потребителям ГП, ЭСО, ЭСК, в том числе: | F36: 720 | G36: 24895.826 | J36: 24895.826
D37: 4.2.1 | E37: прочим потребителям, в том числе: | F37: 730 | G37: 0
D38: 4.2.1.1 | E38: потребителям, опосредованно подключенным к шинам генераторов | F38: 740 | G38: 0
D39: 4.3 | E39: смежным сетевым организациям: | F39: 750 | G39: 0 | H39: =SUM(H40:H41) -> 0 | I39: =SUM(I40:I41) -> 0 | J39: =SUM(J40:J41) -> 0 | K39: =SUM(K40:K41) -> 0
D40: 4.3.0 | F40: 750
E41: Добавить организацию
D42: 4.4 | E42: населению и приравненным к нему категориям | F42: 950 | G42: 0 | P42: 120
D43: 5 | E43: Отпуск в сеть других уровней напряжения | F43: 960 | G43: 39688.506 | H43: 26025.328 | I43: 13663.178 | P43: 150
D44: 6 | E44: Хозяйственные нужды организации | F44: 970 | G44: 0 | P44: 160
D45: 7 | E45: Собственное потребление (совмещение деятельности) | F45: 980 | G45: 0 | P45: 180
D46: 8 | E46: Общий объем потерь (фактические объемы), в том числе: | F46: 990 | G46: 1129.502 | I46: 260.371 | J46: 869.131 | P46: 190
D47: 8.1 | E47: относимые на собственное потребление (фактическое значение) | F47: 1000 | G47: 0 | P47: 200
D48: 9 | E48: Нормативные потери (объемы потерь учтенные в сводном прогнозном балансе) | F48: 1010 | G48: 0
D49: 10 | E49: Объем превышения фактических объемов потерь электрической энергии над объемами потерь, учтенными в сводном прогнозном балансе за соответствующий расчетный период | F49: 1020 | G49: 1129.502 | H49: =H46-H48 -> 0 | I49: =I46-I48 -> 260.371 | J49: =J46-J48 -> 869.131 | K49: =K46-K48 -> 0
D50: 11 | E50: Небаланс | F50: 1030 | G50: 0 | H50: =(H15+H27+H32)-(H33+H43+H44+H45+H46) -> 0 | I50: =(I15+I27+I32)-(I33+I43+I44+I45+I46) -> 0 | J50: =(J15+J27+J32)-(J33+J43+J44+J45+J46) -> 0 | K50: =(K15+K27+K32)-(K33+K43+K44+K45+K46) -> 0 | P50: 210
D51: II. Мощность (МВт)
D52: 12 | E52: Поступление в сеть из других организаций: | F52: 1040 | G52: 3.114916667 | H52: =H53+H54+H57+H60 -> 3.114916667 | I52: =I53+I54+I57+I60 -> 0 | J52: =J53+J54+J57+J60 -> 0 | K52: =K53+K54+K57+K60 -> 0 | P52: 300
D53: 12.1 | E53: из сетей ПАО "ФСК ЕЭС" | F53: 1050 | G53: 0 | P53: 310
D54: 12.2 | E54: от генерирующих компаний и блок-станций: | F54: 1060 | G54: 0 | H54: =SUM(H55:H56) -> 0 | I54: =SUM(I55:I56) -> 0 | J54: =SUM(J55:J56) -> 0 | K54: =SUM(K55:K56) -> 0 | P54: 320
D55: 12.2.0 | F55: 1060
E56: Добавить организацию
D57: 12.3 | E57: от несетевых организаций: | F57: 1260 | G57: 0 | H57: =SUM(H58:H59) -> 0 | I57: =SUM(I58:I59) -> 0 | J57: =SUM(J58:J59) -> 0 | K57: =SUM(K58:K59) -> 0
D58: 12.3.0 | F58: 1260
E59: Добавить организацию
D60: 12.4 | E60: от смежных сетевых организаций: | F60: 1460 | G60: 3.114916667 | H60: =SUM(H61:H63) -> 3.114916667 | I60: =SUM(I61:I63) -> 0 | J60: =SUM(J61:J63) -> 0 | K60: =SUM(K61:K63) -> 0 | P60: 330
D61: 12.4.0 | F61: 1460
C62: О | D62: 12.4.1 | E62: АО "Россети Тюмень" | F62: 1461 | G62: =SUM(H62:K62) -> 3.114916667 | H62: 3.114916667 | M62: 8602060185 | N62: 997450001 | O62: 26522781
E63: Добавить организацию
D64: 13 | E64: Поступление в сеть из других уровней напряжения (трансформация) | F64: 1660 | G64: 4.750174986 | H64: =H66+H67+H68 -> 0 | I64: =I65+I67+I68 -> 1.666416667 | J64: =J65+J66+J68 -> 3.08375832 | K64: =K65+K66+K67 -> 0 | P64: 340
D65: 13.1 | E65: ВН | F65: 1670 | G65: 3.114916667 | I65: 1.666416667 | J65: 1.4485 | P65: 350
D66: 13.2 | E66: СН1 | F66: 1680 | G66: 1.63525832 | J66: 1.63525832 | P66: 360
D67: 13.3 | E67: СН2 | F67: 1690 | G67: 0 | P67: 370
D68: 13.4 | E68: НН | F68: 1700 | G68: 0 | P68: 380
D69: 14 | E69: Генерация на установках организации (совмещение деятельности) | F69: 1710 | G69: 0
D70: 15 | E70: Отпуск из сети: | F70: 1720 | G70: 2.97975 | H70: =H71+H73+H76+H79 -> 0 | I70: =I71+I73+I76+I79 -> 0 | J70: =J71+J73+J76+J79 -> 2.97975 | K70: =K71+K73+K76+K79 -> 0 | P70: 390
D71: 15.1 | E71: прямым прочим потребителям по договорам оказания услуг по передаче электрической энергии, в том числе: | F71: 1730 | G71: 0
D72: 15.1.1 | E72: потребителям, опосредованно подключенным к шинам генераторов | F72: 1740 | G72: 0
D73: 15.2 | E73: потребителям ГП, ЭСО, ЭСК, в том числе: | F73: 1750 | G73: 2.97975 | J73: 2.97975
D74: 15.2.1 | E74: прочим потребителям, в том числе: | F74: 1760 | G74: 0
D75: 15.2.1.1 | E75: потребителям, опосредованно подключенным к шинам генераторов | F75: 1770 | G75: 0
D76: 15.3 | E76: смежным сетевым организациям: | F76: 1780 | G76: 0 | H76: =SUM(H77:H78) -> 0 | I76: =SUM(I77:I78) -> 0 | J76: =SUM(J77:J78) -> 0 | K76: =SUM(K77:K78) -> 0
D77: 15.3.0 | F77: 1780
E78: Добавить организацию
D79: 15.4 | E79: населению и приравненным к нему категориям | F79: 1980 | G79: 0 | P79: 410
D80: 16 | E80: Отпуск в сеть других уровней напряжения | F80: 1990 | G80: 4.750174986 | H80: 3.114916667 | I80: 1.63525832 | P80: 440
D81: 17 | E81: Хозяйственные нужды организации | F81: 2000 | G81: 0 | P81: 450
D82: 18 | E82: Собственное потребление (совмещение деятельности) | F82: 2010 | G82: 0 | P82: 470
D83: 19 | E83: Общий объем потерь (фактические объемы), в том числе: | F83: 2020 | G83: 0.1351666667 | I83: 0.03115834686 | J83: 0.1040083198 | P83: 480
D84: 19.1 | E84: относимые на собственное потребление | F84: 2030 | G84: 0 | P84: 490
D85: 20 | E85: Нормативные потери (объемы потерь учтенные в сводном прогнозном балансе) | F85: 2040 | G85: 0
D86: 21 | E86: Объем превышения фактических объемов потерь электрической энергии над объемами потерь, учтенными в сводном прогнозном балансе за соответствующий расчетный период | F86: 2050 | G86: 0.1351666667 | H86: =H83-H85 -> 0 | I86: =I83-I85 -> 0.03115834686 | J86: =J83-J85 -> 0.1040083198 | K86: =K83-K85 -> 0
D87: 22 | E87: Небаланс | F87: 2060 | G87: 0 | H87: =(H52+H64+H69)-(H70+H80+H81+H82+H83) -> 0 | I87: =(I52+I64+I69)-(I70+I80+I81+I82+I83) -> 0 | J87: =(J52+J64+J69)-(J70+J80+J81+J82+J83) -> 0 | K87: =(K52+K64+K69)-(K70+K80+K81+K82+K83) -> 0 | P87: 500
D88: III. Мощность (МВт)
D89: 23 | E89: Заявленная мощность | F89: 2070 | G89: 3.114916667 | H89: 3.114916667 | P89: 600
D90: 24 | E90: Максимальная мощность | F90: 2080 | G90: 14 | H90: 14 | P90: 610
D91: 25 | E91: Резервируемая мощность | F91: 2090 | G91: 10.88508333 | H91: 10.88508333 | P91: 620
D92: IV. Фактический полезный отпуск конечным потребителям (тыс. кВт ч; МВт)
D93: 26 | E93: Полезный отпуск конечным потребителям (тыс. кВт ч): | F93: 2100 | G93: 0 | H93: =SUM(H94:H95) -> 0 | I93: =SUM(I94:I95) -> 0 | J93: =SUM(J94:J95) -> 0 | K93: =SUM(K94:K95) -> 0 | P93: 700
D94: 26.1 | E94: по одноставочному тарифу | F94: 2110 | G94: 0 | P94: 710
D95: 26.2 | E95: по двухставочному тарифу: | F95: 2120 | G95: 0 | H95: =H98 -> 0 | I95: =I98 -> 0 | J95: =J98 -> 0 | K95: =K98 -> 0 | P95: 720
D96: 26.2.1 | E96: мощность (МВт), в том числе: | F96: 2130 | G96: 0 | P96: 730
D97: 26.2.1.1 | E97: опосредованно подключенным к шинам генераторов (МВт) | F97: 2140 | G97: 0
D98: 26.2.2 | E98: компенсация потерь (тыс. кВт ч) | F98: 2150 | G98: 0 | P98: 740
D99: 27 | E99: Полезный отпуск потребителям ГП, ЭСО (тыс. кВт ч): | F99: 2160 | G99: 24895.826 | H99: =H100+H116 -> 0 | I99: =I100+I116 -> 0 | J99: =J100+J116 -> 24895.826 | K99: =K100+K116 -> 0 | P99: 750
D100: 27.1 | E100: по одноставочному тарифу: | F100: 2170 | G100: 24895.826 | H100: =H101+H102 -> 0 | I100: =I101+I102 -> 0 | J100: =J101+J102 -> 24895.826 | K100: =K101+K102 -> 0 | P100: 760
D101: 27.1.1 | E101: прочим потребителям | F101: 2180 | G101: 24895.826 | H101: 0 | I101: 0 | J101: 24895.826 | K101: 0
D102: 27.1.2 | E102: населению и приравненным к нему категориям потребителей: | F102: 2190 | G102: 0 | H102: =H103+H106+H109+H112+H113+H114+H115 -> 0 | I102: =I103+I106+I109+I112+I113+I114+I115 -> 0 | J102: =J103+J106+J109+J112+J113+J114+J115 -> 0 | K102: =K103+K106+K109+K112+K113+K114+K115 -> 0
D103: 27.1.2.1 | E103: Населению, проживающему в городских населенных пунктах в домах, не оборудованных в установленном порядке стационарными электроплитами и (или) электроотопительными установками и приравненным к нему категориям потребителей: | F103: 2200 | G103: 0 | H103: =H104+H105 -> 0 | I103: =I104+I105 -> 0 | J103: =J104+J105 -> 0 | K103: =K104+K105 -> 0
D104: 27.1.2.1.1 | E104: в пределах социальной нормы потребления | F104: 2210 | G104: 0
D105: 27.1.2.1.2 | E105: сверх социальной нормы потребления | F105: 2220 | G105: 0
D106: 27.1.2.2 | E106: Населению, проживающему в городских населенных пунктах в домах, оборудованных в установленном порядке стационарными электроплитами и электроотопительными установками и приравненным к нему категориям потребителей: | F106: 2230 | G106: 0 | H106: =H107+H108 -> 0 | I106: =I107+I108 -> 0 | J106: =J107+J108 -> 0 | K106: =K107+K108 -> 0
D107: 27.1.2.2.1 | E107: в пределах социальной нормы потребления | F107: 2240 | G107: 0
D108: 27.1.2.2.2 | E108: сверх социальной нормы потребления | F108: 2250 | G108: 0
D109: 27.1.2.3 | E109: Населению, проживающему в сельских населенных пунктах и приравненным к нему потребителям: | F109: 2260 | G109: 0 | H109: =H110+H111 -> 0 | I109: =I110+I111 -> 0 | J109: =J110+J111 -> 0 | K109: =K110+K111 -> 0
D110: 27.1.2.3.1 | E110: в пределах социальной нормы потребления | F110: 2270 | G110: 0
D111: 27.1.2.3.2 | E111: сверх социальной нормы потребления | F111: 2280 | G111: 0
D112: 27.1.2.4 | E112: Садоводческим, огородническим или дачным некоммерческим объединениям граждан | F112: 2290 | G112: 0
D113: 27.1.2.5 | E113: Религиозным организациям | F113: 2300 | G113: 0
D114: 27.1.2.6 | E114: Юридическим лицам приобретающим электроэнергию в целях потребления на коммунально-бытовые нужды в населенных пунктах, жилых зонах при воинских частях и в целях потребления осужденными в помещениях для их содержания | F114: 2310 | G114: 0
D115: 27.1.2.7 | E115: Некоммерческим объединениям граждан (гаражно-строительные, гаражные кооперативы) и хозяйственные постройки физических лиц | F115: 2320 | G115: 0
D116: 27.2 | E116: по двухставочному тарифу (прочие потребители): | F116: 2330 | G116: 0 | H116: =H119 -> 0 | I116: =I119 -> 0 | J116: =J119 -> 0 | K116: =K119 -> 0 | P116: 770
D117: 27.2.1 | E117: мощность (МВт), в том числе: | F117: 2340 | G117: 0 | P117: 780
D118: 27.2.1.1 | E118: опосредованно подключенным к шинам генераторов (МВт) | F118: 2350 | G118: 0
D119: 27.2.2 | E119: компенсация потерь (тыс. кВт ч) | F119: 2360 | G119: 0 | P119: 790
D120: 28 | E120: Оплачиваемый сетевыми организациями объем оказанных услуг по индивидуальному тарифу: | F120: 2370 | G120: 1129.502 | H120: =SUM(H121:H122) -> 0 | I120: =SUM(I121:I122) -> 260.371 | J120: =SUM(J121:J122) -> 869.131 | K120: =SUM(K121:K122) -> 0
D121: 28.1 | E121: по одноставочному тарифу | F121: 2380 | G121: 0
D122: 28.2 | E122: по двухставочному тарифу: | F122: 2390 | G122: 1129.502 | H122: =H124 -> 0 | I122: =I124 -> 260.371 | J122: =J124 -> 869.131 | K122: =K124 -> 0
D123: 28.2.1 | E123: мощность (МВт) | F123: 2400 | G123: 0
D124: 28.2.2 | E124: компенсация потерь (тыс. кВт ч) | F124: 2410 | G124: 1129.502 | H124: 0 | I124: 260.371 | J124: 869.131 | K124: 0
D125: V. Стоимость услуг (тыс. руб.)
D126: 29 | E126: Стоимость услуг, оплачиваемая потребителями (конечными потребителями по прямым договорам и ТСО): | F126: 2420 | G126: 0 | H126: =SUM( H127:H128) -> 0 | I126: =SUM( I127:I128) -> 0 | J126: =SUM( J127:J128) -> 0 | K126: =SUM( K127:K128) -> 0 | P126: 800
D127: 29.1 | E127: по одноставочному тарифу | F127: 2430 | G127: 0 | P127: 810
D128: 29.2 | E128: по двухставочному тарифу: | F128: 2440 | G128: 0 | H128: =H129+H131 -> 0 | I128: =I129+I131 -> 0 | J128: =J129+J131 -> 0 | K128: =K129+K131 -> 0 | P128: 820
D129: 29.2.1 | E129: мощность, в том числе: | F129: 2450 | G129: 0 | P129: 830
D130: 29.2.1.1 | E130: опосредованно потребителям с шин генераторов | F130: 2460 | G130: 0
D131: 29.2.2 | E131: компенсация потерь | F131: 2470 | G131: 0 | P131: 840
D132: 30 | E132: Стоимость услуг, оплачиваемая ГП, ЭСО: | F132: 2480 | G132: 0 | H132: =SUM( H133+H138) -> 0 | I132: =SUM( I133+I138) -> 0 | J132: =SUM( J133+J138) -> 0 | K132: =SUM( K133+K138) -> 0 | P132: 850
D133: 30.1 | E133: по одноставочному тарифу | F133: 2490 | G133: =SUM(H133:K133) -> 0 | H133: =SUM( H134:H135) -> 0 | I133: =SUM( I134:I135) -> 0 | J133: =SUM( J134:J135) -> 0 | K133: =SUM( K134:K135) -> 0 | P133: 860
D134: 30.1.1 | E134: прочим потребителям | F134: 2500 | G134: 0
D135: 30.1.2 | E135: населению и приравненным к нему категориям потребителей: | F135: 2510 | G135: 0 | H135: =H136+H137 -> 0 | I135: =I136+I137 -> 0 | J135: =J136+J137 -> 0 | K135: =K136+K137 -> 0
D136: 30.1.2.1 | E136: в пределах социальной нормы потребления | F136: 2520 | G136: 0
D137: 30.1.2.2 | E137: сверх социальной нормы потребления | F137: 2530 | G137: 0
D138: 30.2 | E138: по двухставочному тарифу (прочие потребители): | F138: 2540 | G138: 0 | H138: =H139+H141 -> 0 | I138: =I139+I141 -> 0 | J138: =J139+J141 -> 0 | K138: =K139+K141 -> 0 | P138: 870
D139: 30.2.1 | E139: мощность, в том числе: | F139: 2550 | G139: 0 | P139: 880
D140: 30.2.1.1 | E140: опосредованно потребителям с шин генераторов | F140: 2560 | G140: 0
D141: 30.2.2 | E141: компенсация потерь | F141: 2570 | G141: 0 | P141: 890
D142: 31 | E142: Стоимость услуг, оплачиваемых сетевыми организациями по индивидуальному тарифу: | F142: 2580 | G142: 11469.16242 | H142: =SUM( H143:H144) -> 0 | I142: =SUM( I143:I144) -> 0 | J142: =SUM( J143:J144) -> 11469.16242 | K142: =SUM( K143:K144) -> 0 | P142: 900
D143: 31.1 | E143: по одноставочному тарифу | F143: 2590 | G143: 0
D144: 31.2 | E144: по двухставочному тарифу: | F144: 2600 | G144: 11469.16242 | H144: =H145+H146 -> 0 | I144: =I145+I146 -> 0 | J144: =J145+J146 -> 11469.16242 | K144: =K145+K146 -> 0
D145: 31.2.1 | E145: мощность | F145: 2610 | G145: 8636.60299 | J145: 8636.60299 | P145: 920
D146: 31.2.2 | E146: компенсация потерь | F146: 2620 | G146: 2832.55943 | J146: 2832.55943 | P146: 910
E148: Должностное лицо, ответственное за | F148: =IF([1]Титульный!G45="","",[1]Титульный!G45) -> Начальник ОУ и СЭ | I148: =IF([1]Титульный!G44="","",[1]Титульный!G44) -> Стрюк Виталий Геннадьевич
E149: предоставление статистической информации | F149: (должность) | I149: (Ф.И.О.) | M149: (подпись)
E150: (лицо, уполномоченное предоставлять
E151: статистическую информацию от имени | F151: =IF([1]Титульный!G46="","",[1]Титульный!G46) -> 8 (38259) 6-60-30 | J151: «____» _________20__ год
E152: юридического лица) | F152: (номер контактного телефона) | J152: (дата составления документа)
